fUST/lending_fUST_20240203
["ID","MTS","AMOUNT","RATE_DAILY","PERIOD"]
[313211319,1706955039977,-500.0,0.00027671,2]
[313211320,1706955039985,-500.0,0.00027671,2]
[313211321,1706955039995,-637.88884278,0.00027671,2]
[313211322,1706955040004,-500.0,0.00027671,2]
[313211323,1706955040014,-500.0,0.00027671,2]
[313211324,1706955040024,-500.0,0.00027671,2]
[313211325,1706955040033,-3503.35,0.00027671,2]
[313211326,1706955040042,-306.0,0.00027671,2]
[313211327,1706955040051,-199.7424242,0.00027671,2]
[313211328,1706955040061,-1000.0,0.00027699,3]
[313211329,1706955040071,-1023.88339212,0.00027699,3]
[313211330,1706955040080,-3000.0,0.000277,4]
[313211331,1706955040089,-2201.41333959,0.00027785,2]
[313211332,1706955040098,-194.65105516,0.00027786,2]
[313211333,1706955040108,-26672.88718647,0.00027787,2]
[313211334,1706955040117,-151.0,0.00027787,2]
[313211335,1706955040127,-151.0,0.00027787,2]
[313211336,1706955040136,-500.0,0.00027882,7]
[313211337,1706955040145,-500.0,0.00027882,7]
[313211338,1706955040155,-500.0,0.00027882,7]
[313211339,1706955040165,-500.0,0.00027882,7]
[313211340,1706955040174,-500.0,0.00027882,7]
[313211341,1706955040184,-500.0,0.00027882,7]
[313211342,1706955040194,-630.42,0.00027882,7]
[313211343,1706955040203,-2000.0,0.000279,2]
[313211344,1706955040212,-437.02503165,0.000279,2]
[313211345,1706955040221,-2000.0,0.0002791,2]
[313211346,1706955040231,-2000.0,0.0002792,2]
[313211347,1706955040240,-2875.864551,0.0002793,2]
[313211348,1706955040249,-37028.48161745,0.00027943,2]
[313211349,1706955040258,-157.5,0.00027943,2]
[313211350,1706955040267,-151.0,0.00027943,2]
[313211351,1706955040276,-157.5,0.00027943,2]
[313211352,1706955040285,-151.0,0.00027943,2]
[313211353,1706955040294,-151.0,0.00027943,2]
[313211354,1706955040303,-151.0,0.00027943,2]
[313211355,1706955040312,-151.001804,0.00027943,2]
[313211356,1706955040321,-500.0,0.00027945,2]
[313211357,1706955040331,-500.0,0.00027945,2]
[313211358,1706955040340,-500.0,0.00027945,2]
[313211359,1706955040349,-463.55643008,0.00027945,2]
[313211360,1706955040358,-500.0,0.00027945,2]
[313211361,1706955040367,-560.10834893,0.00027945,2]
[313211362,1706955040376,-500.0,0.00027945,2]
[313211363,1706955040385,-500.0,0.00027945,2]
[313211364,1706955040394,-500.0,0.00027945,2]
[313211365,1706955040403,-500.0,0.00027945,2]
[313211366,1706955040413,-274.69,0.00027945,2]
[313211367,1706955040422,-500.0,0.00027945,2]
[313211368,1706955040431,-709.98,0.00027945,2]
[313211369,1706955040440,-3081.4,0.00027945,2]
[313211370,1706955040449,-500.0,0.00027945,2]
[313211371,1706955040458,-500.0,0.00027945,2]
[313211372,1706955040468,-500.0,0.00027945,2]
[313211373,1706955040477,-500.0,0.00027945,2]
[313211374,1706955040486,-500.0,0.00027945,2]
[313211375,1706955040495,-656.43,0.00027945,2]
[313211376,1706955040504,-500.0,0.00027945,2]
[313211377,1706955040513,-500.0,0.00027945,2]
[313211378,1706955040522,-500.0,0.00027945,2]
[313211379,1706955040532,-633.14,0.00027945,2]
[313211380,1706955040541,-1212.65,0.00027945,2]
[313211381,1706955040550,-500.0,0.00027945,2]
[313211382,1706955040559,-500.0,0.00027945,2]
[313211383,1706955040569,-500.0,0.00027945,2]
[313211384,1706955040578,-500.0,0.00027945,2]
[313211385,1706955040587,-500.0,0.00027945,2]
[313211386,1706955040596,-500.0,0.00027945,2]
[313211387,1706955040605,-1278.64,0.00027945,2]
[313211388,1706955040615,-500.0,0.00027945,2]
[313211389,1706955040624,-500.0,0.00027945,2]
[313211390,1706955040633,-500.0,0.00027945,2]
[313211391,1706955040642,-500.0,0.00027945,2]
[313211392,1706955040651,-500.0,0.00027945,2]
[313211393,1706955040660,-1676.04,0.00027945,2]
[313211394,1706955040670,-282.39,0.00027945,2]
[313211395,1706955040679,-500.0,0.00027945,2]
[313211396,1706955040689,-500.0,0.00027945,2]
[313211397,1706955040698,-500.0,0.00027945,2]
[313211398,1706955040709,-500.0,0.00027945,2]
[313211399,1706955040718,-3503.35,0.00027945,2]
[313211400,1706955040730,-391.0,0.00027958,15]
[313211401,1706955040739,-459.92906339,0.00028,3]
[313211402,1706955040749,-64929.49941037,0.00028,2]
[313211403,1706955040759,-51099.57217898,0.00028,2]
[313211404,1706955040769,-225.583434,0.00028,7]
[313211405,1706955040778,-151.0,0.00028,2]
[313211406,1706955040787,-151.0,0.00028,2]
[313211407,1706955040796,-157.5,0.00028,2]
[313211408,1706955040806,-157.5,0.00028,2]
[313211409,1706955040815,-151.0,0.00028,2]
[313211410,1706955040825,-151.0,0.00028,2]
[313211411,1706955040834,-157.5,0.00028,2]
[313211412,1706955040843,-157.5,0.00028,2]
[313211413,1706955040852,-151.0,0.00028,2]
[313211414,1706955040861,-151.0,0.00028,2]
[313211415,1706955040870,-151.0,0.00028,2]
[313211416,1706955040879,-151.0,0.00028,2]
[313211417,1706955040889,-1922.56103292,0.00028187,2]
[313211418,1706955040898,-500.0,0.00028219,2]
[313211419,1706955040907,-500.0,0.00028219,2]
[313211420,1706955040916,-500.0,0.00028219,2]
[313211421,1706955040925,-500.0,0.00028219,2]
[313211422,1706955040934,-500.0,0.00028219,2]
[313211423,1706955040943,-500.0,0.00028219,2]
[313211424,1706955040952,-500.0,0.00028219,2]
[313211425,1706955040961,-709.98,0.00028219,2]
[313211426,1706955040971,-3081.4,0.00028219,2]
[313211427,1706955040980,-500.0,0.00028219,2]
[313211428,1706955040989,-500.0,0.00028219,2]
[313211429,1706955040998,-656.43,0.00028219,2]
[313211430,1706955041007,-440.24666505,0.00028219,2]
[313211431,1706955041016,-633.14,0.00028219,2]
[313211432,1706955041025,-1212.65,0.00028219,2]
[313211433,1706955041034,-500.0,0.00028219,2]
[313211434,1706955041044,-533.9,0.00028219,2]
[313211435,1706955041053,-500.0,0.00028219,2]
[313211436,1706955041062,-1278.64,0.00028219,2]
[313211437,1706955041071,-500.0,0.00028219,2]
[313211438,1706955041080,-515.99079095,0.00028219,2]
[313211439,1706955041089,-326.56995206,0.00028219,2]
[313211440,1706955041099,-500.0,0.00028219,2]
[313211441,1706955041108,-1676.04,0.00028219,2]
[313211443,1706955041117,-500.0,0.00028219,2]
[313211445,1706955041126,-500.0,0.00028219,2]
[313211447,1706955041134,-3503.35,0.00028219,2]
[313211449,1706955041143,-1198.4869525,0.00028492,2]
[313211451,1706955041152,-1245.71465963,0.00028492,2]
[313211453,1706955041161,-332.55976769,0.00028492,2]
[313211455,1706955041171,-227.64707964,0.00028493,2]
[313211457,1706955041180,-500.0,0.00028493,2]
[313211459,1706955041189,-709.98,0.00028493,2]
[313211460,1706955041198,-3081.4,0.00028493,2]
[313211463,1706955041208,-500.0,0.00028493,2]
[313211465,1706955041217,-500.0,0.00028493,2]
[313211466,1706955041226,-656.43,0.00028493,2]
[313211468,1706955041235,-633.14,0.00028493,2]
[313211471,1706955041245,-1212.65,0.00028493,2]
[313211472,1706955041254,-500.0,0.00028493,2]
[313211474,1706955041263,-500.0,0.00028493,2]
[313211476,1706955041273,-1278.64,0.00028493,2]
[313211479,1706955041282,-500.0,0.00028493,2]
[313211480,1706955041293,-1676.04,0.00028493,2]
[313211483,1706955041302,-500.0,0.00028493,2]
[313211485,1706955041312,-3503.35,0.00028493,2]
[313211487,1706955041321,-600.0,0.000285,2]
[313211488,1706955041330,-1292.75017331,0.00028691,4]
[313211490,1706955041340,-151.0,0.000287,2]
[313211493,1706955041349,-578.0,0.000287,2]
[313211494,1706955041358,-157.5,0.00028766,2]
[313211497,1706955041367,-157.5,0.00028766,2]
[313211499,1706955041376,-151.0,0.00028766,2]
[313211500,1706955041385,-236.88146597,0.00028767,7]
[313211503,1706955041395,-430.51695446,0.00028767,2]
[313211504,1706955041403,-486.99104266,0.00028767,2]
[313211506,1706955041413,-709.98,0.00028767,2]
[313211508,1706955041422,-3081.4,0.00028767,2]
[313211510,1706955041431,-500.0,0.00028767,2]
[313211512,1706955041440,-500.0,0.00028767,2]
[313211515,1706955041450,-656.43,0.00028767,2]
[313211516,1706955041460,-633.14,0.00028767,2]
[313211518,1706955041470,-1212.65,0.00028767,2]
[313211521,1706955041479,-500.0,0.00028767,2]
[313211522,1706955041488,-500.0,0.00028767,2]
[313211524,1706955041498,-1278.64,0.00028767,2]
[313211526,1706955041507,-500.0,0.00028767,2]
[313211528,1706955041516,-1676.04,0.00028767,2]
[313211530,1706955041525,-500.0,0.00028767,2]
[313211532,1706955041535,-500.0,0.00028767,2]
[313211534,1706955041544,-155.38426279,0.00028798,2]
[313211536,1706955041554,-1381.5688834,0.00028799,2]
[313211539,1706955041564,-259.0506465,0.000288,3]
[313211541,1706955041573,-14984.28938433,0.000288,4]
[313211549,1706955041644,-610.340678,0.00027661,3]
[313211551,1706955041655,-260.659322,0.00027661,3]
[313211688,1706955043217,-1923.16,0.00027661,3]
[313211690,1706955043227,-3503.35,0.00028767,2]
[313211692,1706955043236,-2175.4611458,0.000288,4]
[313211695,1706955043251,-962.23909208,0.000288,4]
[313211698,1706955043272,-788.67045445,0.000288,4]
[313211700,1706955043281,-708.86684197,0.00028998,2]
[313211702,1706955043290,-301.93766775,0.00028998,2]
[313211704,1706955043298,-156.35277896,0.00028998,2]
[313211706,1706955043307,-131.8522592,0.00028998,2]
[313211868,1706955046298,-398.91850157,0.0002766,2]
[313211870,1706955046308,-173.1202399,0.0002766,2]
[313211872,1706955046317,-276.87209448,0.00028998,2]
[313211875,1706955046353,-908.21571175,0.00028998,2]
[313211906,1706955839023,3293.55237055,0.00028998,30]
[313211907,1706955857021,2195.70158037,0.00028998,30]
[313211908,1706955881870,1829.75131697,0.00028998,30]
[313211909,1706955895860,953.30043614,0.00028998,30]
[313211967,1706956232333,-486.03262571,0.00024855,2]
[313211969,1706956232345,-645.123776,0.00024855,2]
[313211971,1706956232355,-1858.30574077,0.00024917,2]
[313211973,1706956232365,-155.02015262,0.00024917,2]
[313211975,1706956232374,-1200.7118793,0.00024918,2]
[313211977,1706956232383,-651.45454176,0.00024918,2]
[313211979,1706956232392,-24900.0,0.00024929,2]
[313211981,1706956232401,-10620.0377815,0.00024955,2]
[313211983,1706956232410,-3716.88390161,0.00024955,2]
[313211985,1706956232419,-729.52654387,0.00024955,2]
[313211987,1706956232428,-697.1372444,0.00025506,2]
[313211989,1706956232437,-1086.59483494,0.00026393,2]
[313211991,1706956232446,-396.66740215,0.00027,2]
[313211993,1706956232455,-2881.76,0.00027386,3]
[313211995,1706956232464,-2401.46,0.00027386,3]
[313211997,1706956232473,-2001.22,0.00027386,3]
[313211999,1706956232482,-455.2446632,0.00027395,2]
[313212001,1706956232491,-12297.00710721,0.00027396,2]
[313212245,1706956238563,-1667.68,0.00027386,3]
[313212246,1706956238573,-24731.47451024,0.00027396,2]
[313212247,1706956238582,-500.0,0.00027397,2]
[313212248,1706956238592,-500.0,0.00027397,2]
[313212249,1706956238601,-500.0,0.00027397,2]
[313212250,1706956238610,-500.0,0.00027397,2]
[313212251,1706956238620,-155.0,0.00027397,2]
[313212252,1706956238629,-505.61619828,0.00027397,2]
[313212253,1706956238638,-500.0,0.00027397,2]
[313212254,1706956238648,-500.0,0.00027397,2]
[313212255,1706956238658,-240.43038265,0.00027397,2]
[313212256,1706956238667,-500.0,0.00027397,2]
[313212257,1706956238676,-509.16728415,0.00027397,2]
[313212258,1706956238686,-505.95287227,0.00027397,2]
[313212259,1706956238695,-501.95979755,0.00027397,2]
[313212260,1706956238704,-501.56367019,0.00027397,2]
[313212261,1706956238714,-500.0,0.00027397,2]
[313212262,1706956238723,-500.0,0.00027397,2]
[313212263,1706956238732,-194.57581154,0.00027397,2]
[313212264,1706956238742,-500.0,0.00027397,2]
[313212265,1706956238751,-500.0,0.00027397,2]
[313212266,1706956238761,-3093.31,0.00027397,2]
[313212267,1706956238770,-500.0,0.00027397,2]
[313212268,1706956238779,-500.0,0.00027397,2]
[313212269,1706956238789,-500.0,0.00027397,2]
[313212270,1706956238798,-500.0,0.00027397,2]
[313212271,1706956238807,-680.4,0.00027397,2]
[313212272,1706956238817,-500.0,0.00027397,2]
[313212273,1706956238826,-500.0,0.00027397,2]
[313212274,1706956238836,-500.0,0.00027397,2]
[313212275,1706956238846,-474.96707827,0.00027397,2]
[313212276,1706956238855,-500.0,0.00027397,2]
[313212277,1706956238865,-500.0,0.00027397,2]
[313212278,1706956238875,-500.0,0.00027397,2]
[313212279,1706956238884,-500.0,0.00027397,2]
[313212280,1706956238894,-500.0,0.00027397,2]
[313212281,1706956238903,-633.14,0.00027397,2]
[313212282,1706956238912,-687.69,0.00027397,2]
[313212283,1706956238921,-500.0,0.00027397,2]
[313212284,1706956238932,-500.0,0.00027397,2]
[313212285,1706956238941,-500.0,0.00027397,2]
[313212286,1706956238951,-500.0,0.00027397,2]
[313212287,1706956238960,-500.0,0.00027397,2]
[313212288,1706956238970,-624.15640998,0.00027397,2]
[313212289,1706956238980,-500.0,0.00027397,2]
[313212290,1706956238989,-1212.65,0.00027397,2]
[313212291,1706956238998,-500.0,0.00027397,2]
[313212292,1706956239008,-500.0,0.00027397,2]
[313212293,1706956239017,-500.0,0.00027397,2]
[313212294,1706956239026,-500.0,0.00027397,2]
[313212295,1706956239037,-500.0,0.00027397,2]
[313212296,1706956239046,-500.49854135,0.00027397,2]
[313212297,1706956239056,-1278.64,0.00027397,2]
[313212298,1706956239065,-500.0,0.00027397,2]
[313212299,1706956239075,-500.0,0.00027397,2]
[313212300,1706956239087,-500.0,0.00027397,2]
[313212301,1706956239097,-500.0,0.00027397,2]
[313212302,1706956239109,-500.0,0.00027397,2]
[313212303,1706956239118,-1676.04,0.00027397,2]
[313212304,1706956239127,-500.0,0.00027397,2]
[313212305,1706956239137,-163.16785423,0.00027397,2]
[313212306,1706956239146,-3357.38,0.00027397,2]
[313212307,1706956239155,-500.0,0.00027397,2]
[313212308,1706956239164,-150.247468,0.00027397,2]
[313212309,1706956239173,-200.0,0.0002742,15]
[313212310,1706956239185,-1131.15640164,0.00027496,3]
[313212311,1706956239194,-600.0,0.000275,2]
[313212312,1706956239203,-432.16430821,0.00027671,2]
[313212313,1706956239213,-500.0,0.00027671,2]
[313212314,1706956239222,-500.0,0.00027671,2]
[313212315,1706956239231,-500.0,0.00027671,2]
[313212316,1706956239240,-500.0,0.00027671,2]
[313212317,1706956239250,-500.0,0.00027671,2]
[313212318,1706956239259,-500.0,0.00027671,2]
[313212319,1706956239384,-3093.31,0.00027671,2]
[313212320,1706956239396,-500.0,0.00027671,2]
[313212321,1706956239405,-500.0,0.00027671,2]
[313212322,1706956239414,-500.0,0.00027671,2]
[313212323,1706956239423,-680.4,0.00027671,2]
[313212324,1706956239433,-500.0,0.00027671,2]
[313212325,1706956239442,-500.0,0.00027671,2]
[313212326,1706956239451,-500.0,0.00027671,2]
[313212327,1706956239460,-500.0,0.00027671,2]
[313212328,1706956239469,-500.0,0.00027671,2]
[313212329,1706956239478,-500.0,0.00027671,2]
[313212330,1706956239487,-633.14,0.00027671,2]
[313212331,1706956239497,-687.69,0.00027671,2]
[313212332,1706956239507,-500.0,0.00027671,2]
[313212333,1706956239516,-500.0,0.00027671,2]
[313212334,1706956239525,-500.0,0.00027671,2]
[313212335,1706956239535,-500.0,0.00027671,2]
[313212336,1706956239544,-500.0,0.00027671,2]
[313212337,1706956239553,-1212.65,0.00027671,2]
[313212338,1706956239561,-500.0,0.00027671,2]
[313212339,1706956239572,-500.0,0.00027671,2]
[313212340,1706956239581,-500.0,0.00027671,2]
[313212341,1706956239590,-500.0,0.00027671,2]
[313212342,1706956239599,-500.0,0.00027671,2]
[313212343,1706956239608,-1278.64,0.00027671,2]
[313212344,1706956239616,-500.0,0.00027671,2]
[313212345,1706956239626,-500.0,0.00027671,2]
[313212346,1706956239635,-637.88884278,0.00027671,2]
[313212347,1706956239644,-500.0,0.00027671,2]
[313212348,1706956239654,-500.0,0.00027671,2]
[313212349,1706956239662,-1676.04,0.00027671,2]
[313212350,1706956239671,-500.0,0.00027671,2]
[313212351,1706956239681,-3357.38,0.00027671,2]
[313212352,1706956239690,-500.0,0.00027671,2]
[313212353,1706956239699,-3000.0,0.000277,4]
[313212354,1706956239709,-218.34543127,0.00027942,2]
[313212355,1706956239718,-500.0,0.00027942,2]
[313212356,1706956239727,-500.0,0.00027942,2]
[313212357,1706956239736,-500.0,0.00027942,2]
[313212358,1706956239746,-500.0,0.00027942,2]
[313212359,1706956239755,-500.0,0.00027942,2]
[313212360,1706956239765,-500.0,0.00027942,2]
[313212361,1706956239774,-500.0,0.00027942,2]
[313212362,1706956239783,-600.0,0.00027942,2]
[313212363,1706956239792,-500.0,0.00027942,2]
[313212364,1706956239801,-500.0,0.00027942,2]
[313212365,1706956239811,-500.0,0.00027942,2]
[313212366,1706956239821,-500.0,0.00027942,2]
[313212367,1706956239830,-500.0,0.00027942,2]
[313212368,1706956239839,-500.0,0.00027942,2]
[313212369,1706956239848,-500.0,0.00027942,2]
[313212370,1706956239857,-500.0,0.00027942,2]
[313212371,1706956239866,-500.0,0.00027942,2]
[313212372,1706956239876,-500.0,0.00027942,2]
[313212373,1706956239885,-500.0,0.00027942,2]
[313212374,1706956239894,-500.0,0.00027942,2]
[313212375,1706956239904,-500.0,0.00027942,2]
[313212377,1706956239913,-500.0,0.00027942,2]
[313212378,1706956239922,-500.0,0.00027942,2]
[313212379,1706956239932,-500.0,0.00027942,2]
[313212380,1706956239941,-565.39070937,0.00027942,2]
[313212381,1706956239950,-500.0,0.00027942,2]
[313212382,1706956239959,-500.0,0.00027942,2]
[313212383,1706956239968,-500.0,0.00027942,2]
[313212384,1706956239978,-500.0,0.00027942,2]
[313212385,1706956239986,-500.0,0.00027942,2]
[313212386,1706956239995,-500.0,0.00027942,2]
[313212387,1706956240004,-500.0,0.00027942,2]
[313212388,1706956240013,-500.0,0.00027942,2]
[313212389,1706956240022,-460.0,0.00027942,2]
[313212390,1706956240032,-500.0,0.00027942,2]
[313212391,1706956240040,-500.0,0.00027942,2]
[313212392,1706956240049,-500.0,0.00027942,2]
[313212393,1706956240058,-500.0,0.00027942,2]
[313212394,1706956240067,-500.0,0.00027942,2]
[313212395,1706956240076,-500.0,0.00027942,2]
[313212396,1706956240084,-500.0,0.00027942,2]
[313212397,1706956240096,-500.0,0.00027942,2]
[313212398,1706956240107,-500.0,0.00027942,2]
[313212399,1706956240116,-500.0,0.00027942,2]
[313212400,1706956240126,-500.0,0.00027942,2]
[313212401,1706956240135,-500.0,0.00027942,2]
[313212402,1706956240144,-500.0,0.00027942,2]
[313212403,1706956240153,-209.08010662,0.00027942,2]
[313212404,1706956240162,-500.0,0.00027944,2]
[313212405,1706956240171,-503.93231267,0.00027944,2]
[313212406,1706956240181,-500.0,0.00027944,2]
[313212407,1706956240190,-508.84074128,0.00027944,2]
[313212408,1706956240199,-504.62288054,0.00027944,2]
[313212409,1706956240208,-500.0,0.00027944,2]
[313212410,1706956240217,-505.88117629,0.00027944,2]
[313212411,1706956240226,-513.93419891,0.00027944,2]
[313212412,1706956240235,-503.81745858,0.00027944,2]
[313212413,1706956240244,-500.0,0.00027944,2]
[313212414,1706956240253,-525.34101276,0.00027944,2]
[313212415,1706956240262,-500.0,0.00027944,2]
[313212416,1706956240271,-500.0,0.00027944,2]
[313212417,1706956240281,-500.0,0.00027944,2]
[313212418,1706956240290,-504.73072043,0.00027944,2]
[313212419,1706956240298,-500.0,0.00027944,2]
[313212420,1706956240307,-500.0,0.00027944,2]
[313212421,1706956240317,-501.37259724,0.00027944,2]
[313212422,1706956240326,-500.0,0.00027944,2]
[313212423,1706956240335,-500.0,0.00027944,2]
[313212424,1706956240344,-500.0,0.00027944,2]
[313212425,1706956240353,-505.91505518,0.00027944,2]
[313212426,1706956240362,-500.0,0.00027944,2]
[313212427,1706956240370,-500.0,0.00027944,2]
[313212428,1706956240379,-500.0,0.00027944,2]
[313212429,1706956240389,-500.0,0.00027944,2]
[313212430,1706956240398,-503.63711727,0.00027944,2]
[313212431,1706956240408,-500.0,0.00027944,2]
[313212432,1706956240417,-516.25072468,0.00027944,2]
[313212433,1706956240426,-500.0,0.00027944,2]
[313212434,1706956240436,-503.75418424,0.00027944,2]
[313212435,1706956240446,-505.61402559,0.00027944,7]
[313212436,1706956240455,-176.33972775,0.00027944,2]
[313212437,1706956240464,-308.37268485,0.00027944,2]
[313212438,1706956240473,-500.0,0.00027944,2]
[313212439,1706956240483,-500.0,0.00027944,2]
[313212440,1706956240492,-463.55643008,0.00027945,2]
[313212441,1706956240501,-500.0,0.00027945,2]
[313212442,1706956240511,-560.10834893,0.00027945,2]
[313212443,1706956240520,-500.0,0.00027945,2]
[313212444,1706956240529,-500.0,0.00027945,2]
[313212445,1706956240538,-500.0,0.00027945,2]
[313212446,1706956240547,-3093.31,0.00027945,2]
[313212447,1706956240556,-500.0,0.00027945,2]
[313212448,1706956240565,-274.69,0.00027945,2]
[313212449,1706956240574,-500.0,0.00027945,2]
[313212450,1706956240583,-680.4,0.00027945,2]
[313212451,1706956240592,-500.0,0.00027945,2]
[313212452,1706956240601,-500.0,0.00027945,2]
[313212453,1706956240610,-500.0,0.00027945,2]
[313212454,1706956240619,-500.0,0.00027945,2]
[313212455,1706956240629,-500.0,0.00027945,2]
[313212456,1706956240638,-500.0,0.00027945,2]
[313212457,1706956240647,-633.14,0.00027945,2]
[313212458,1706956240656,-687.69,0.00027945,2]
[313212459,1706956240665,-500.0,0.00027945,2]
[313212460,1706956240674,-500.0,0.00027945,2]
[313212461,1706956240683,-500.0,0.00027945,2]
[313212462,1706956240692,-500.0,0.00027945,2]
[313212463,1706956240701,-1212.65,0.00027945,2]
[313212464,1706956240711,-500.0,0.00027945,2]
[313212465,1706956240720,-500.0,0.00027945,2]
[313212466,1706956240730,-500.0,0.00027945,2]
[313212467,1706956240739,-282.39,0.00027945,2]
[313212468,1706956240748,-1278.64,0.00027945,2]
[313212469,1706956240758,-500.0,0.00027945,2]
[313212470,1706956240767,-500.0,0.00027945,2]
[313212471,1706956240777,-500.0,0.00027945,2]
[313212472,1706956240787,-500.0,0.00027945,2]
[313212473,1706956240796,-1676.04,0.00027945,2]
[313212474,1706956240806,-500.0,0.00027945,2]
[313212475,1706956240815,-3357.38,0.00027945,2]
[313212476,1706956240824,-500.0,0.00027945,2]
[313212477,1706956240834,-500.0,0.00027998,7]
[313212478,1706956240844,-500.0,0.00027998,7]
[313212479,1706956240853,-500.0,0.00027998,7]
[313212480,1706956240862,-500.0,0.00027998,7]
[313212481,1706956240872,-500.0,0.00027998,7]
[313212482,1706956240881,-500.0,0.00027998,7]
[313212483,1706956240891,-630.42,0.00027998,7]
[313212484,1706956240900,-51099.57217898,0.00028,2]
[313212485,1706956240909,-459.92906339,0.00028,3]
[313212486,1706956240919,-64929.49941037,0.00028,2]
[313212487,1706956240928,-600.0,0.00028,2]
[313212488,1706956240938,-26672.88718647,0.0002805,2]
[313212489,1706956240947,-437.02503165,0.00028119,2]
[313212490,1706956240956,-500.0,0.00028218,2]
[313212491,1706956240965,-500.0,0.00028218,2]
[313212492,1706956240974,-500.0,0.00028218,2]
[313212493,1706956240984,-500.0,0.00028218,2]
[313212494,1706956240994,-500.0,0.00028218,2]
[313212495,1706956241003,-500.0,0.00028218,2]
[313212496,1706956241012,-500.0,0.00028218,2]
[313212497,1706956241022,-500.0,0.00028218,2]
[313212498,1706956241031,-500.0,0.00028218,2]
[313212499,1706956241040,-500.0,0.00028218,2]
[313212500,1706956241048,-500.0,0.00028218,2]
[313212501,1706956241057,-500.0,0.00028219,2]
[313212502,1706956241066,-500.0,0.00028219,2]
[313212503,1706956241075,-500.0,0.00028219,2]
[313212504,1706956241084,-3093.31,0.00028219,2]
[313212505,1706956241093,-680.4,0.00028219,2]
[313212506,1706956241106,-500.0,0.00028219,2]
[313212507,1706956241115,-500.0,0.00028219,2]
[313212508,1706956241124,-500.0,0.00028219,2]
[313212509,1706956241134,-500.0,0.00028219,2]
[313212510,1706956241143,-633.14,0.00028219,2]
[313212511,1706956241152,-687.69,0.00028219,2]
[313212512,1706956241161,-500.0,0.00028219,2]
[313212513,1706956241170,-500.0,0.00028219,2]
[313212514,1706956241180,-1212.65,0.00028219,2]
[313212515,1706956241191,-500.0,0.00028219,2]
[313212516,1706956241200,-533.9,0.00028219,2]
[313212517,1706956241208,-1278.64,0.00028219,2]
[313212518,1706956241217,-326.56995206,0.00028219,2]
[313212519,1706956241226,-500.0,0.00028219,2]
[313212520,1706956241235,-500.0,0.00028219,2]
[313212521,1706956241244,-1676.04,0.00028219,2]
[313212522,1706956241253,-3357.38,0.00028219,2]
[313212523,1706956241262,-5000.0,0.00028317,5]
[313212524,1706956241271,-500.0,0.00028492,2]
[313212525,1706956241280,-500.0,0.00028492,2]
[313212526,1706956241289,-500.0,0.00028492,2]
[313212527,1706956241299,-500.0,0.00028492,2]
[313212528,1706956241308,-515.99079095,0.00028492,2]
[313212529,1706956241317,-500.0,0.00028492,2]
[313212530,1706956241326,-500.0,0.00028492,2]
[313212531,1706956241335,-500.0,0.00028492,2]
[313212532,1706956241344,-151.0,0.00028492,2]
[313212533,1706956241353,-500.0,0.00028492,2]
[313212534,1706956241362,-151.0,0.00028492,2]
[313212535,1706956241371,-151.0,0.00028492,2]